[Event "*** Titled Tuesday Blitz"]
[Site "Chess.com"]
[Date "2020.10.20"]
[Round "1"]
[White "ZverevLev"]
[Black "GothamChess"]
[Result "0-1"]
[WhiteElo "2283"]
[BlackElo "2610"]
[TimeControl "180+1"]
[EndTime "10:04:23 PDT"]
[Termination "GothamChess won by resignation"]

1. e4 {[%clk 0:02:59.4]} 1... c6 {[%clk 0:03:00.2]} 2. d4 {[%clk 0:02:57.7]}
2... d5 {[%clk 0:03:01.1]} 3. e5 {[%clk 0:02:54.4]} 3... Bf5 {[%clk 0:03:00.8]}
4. Nd2 {[%clk 0:02:52.8]} 4... e6 {[%clk 0:03:00.1]} 5. Nb3 {[%clk 0:02:50.3]}
5... a5 {[%clk 0:03:00.1]} 6. a4 {[%clk 0:02:46.8]} 6... Ne7 {[%clk 0:03:00.6]}
7. Nf3 {[%clk 0:02:46.1]} 7... h6 {[%clk 0:03:00.8]} 8. Be2 {[%clk 0:02:45.9]}
8... Nd7 {[%clk 0:03:00.9]} 9. O-O {[%clk 0:02:45.7]} 9... Qc7 {[%clk
0:03:01.5]} 10. Re1 {[%clk 0:02:43.4]} 10... g5 {[%clk 0:03:01.2]} 11. Be3
{[%clk 0:02:39.7]} 11... Bg7 {[%clk 0:03:01.2]} 12. Qd2 {[%clk 0:02:33]} 12...
O-O {[%clk 0:02:58.8]} 13. h3 {[%clk 0:02:25.2]} 13... Bg6 {[%clk 0:02:58.2]}
14. Rac1 {[%clk 0:02:19.4]} 14... Nb6 {[%clk 0:02:54.7]} 15. Bd3 {[%clk
0:02:15.9]} 15... Nc4 {[%clk 0:02:52.9]} 16. Qe2 {[%clk 0:02:10.5]} 16... Nxb2
{[%clk 0:02:46.2]} 17. Bxg6 {[%clk 0:02:08.7]} 17... fxg6 {[%clk 0:02:43.6]} 18.
Ra1 {[%clk 0:02:07.7]} 18... Nc4 {[%clk 0:02:42]} 19. Nc5 {[%clk 0:02:04.4]}
19... Qc8 {[%clk 0:02:38.9]} 20. Nd2 {[%clk 0:02:00.6]} 20... Nxd2 {[%clk
0:02:34.1]} 21. Qxd2 {[%clk 0:02:01.5]} 21... b6 {[%clk 0:02:33.1]} 22. Nd3
{[%clk 0:01:57.1]} 22... Qc7 {[%clk 0:02:26.3]} 23. h4 {[%clk 0:01:52.3]} 23...
gxh4 {[%clk 0:02:19.9]} 24. Bxh6 {[%clk 0:01:50.7]} 24... Nf5 {[%clk 0:02:20.2]}
25. Bxg7 {[%clk 0:01:49.4]} 25... Kxg7 {[%clk 0:02:20.5]} 26. Qg5 {[%clk
0:01:43.7]} 26... Qe7 {[%clk 0:02:14.4]} 27. Qg4 {[%clk 0:01:41.5]} 27... Nh6
{[%clk 0:02:07.7]} 28. Qh3 {[%clk 0:01:37.1]} 28... g5 {[%clk 0:02:07.1]} 29.
Qe3 {[%clk 0:01:33.4]} 29... Nf5 {[%clk 0:01:59.8]} 30. Qd2 {[%clk 0:01:31.4]}
30... Nxd4 {[%clk 0:01:57.9]} 31. f4 {[%clk 0:01:30.4]} 31... g4 {[%clk
0:01:55.4]} 32. Nf2 {[%clk 0:01:26.8]} 32... Qc5 {[%clk 0:01:48.7]} 33. Nxg4
{[%clk 0:01:14]} 33... Nf3+ {[%clk 0:01:48.5]} 0-1

[Event "*** Titled Tuesday Blitz"]
[Site "Chess.com"]
[Date "2020.10.20"]
[Round "1"]
[White "GOGIEFF"]
[Black "Ladislav1969"]
[Result "1-0"]
[WhiteElo "2879"]
[BlackElo "2432"]
[TimeControl "180+1"]
[EndTime "10:04:30 PDT"]
[Termination "GOGIEFF won by resignation"]

1. d4 {[%clk 0:03:00.9]} 1... Nf6 {[%clk 0:02:59.7]} 2. c4 {[%clk 0:03:00.7]}
2... g6 {[%clk 0:02:59.7]} 3. Nc3 {[%clk 0:03:00.8]} 3... d5 {[%clk 0:02:59.9]}
4. Nf3 {[%clk 0:02:59.7]} 4... Bg7 {[%clk 0:02:59.6]} 5. cxd5 {[%clk 0:03:00]}
5... Nxd5 {[%clk 0:02:59.2]} 6. Bd2 {[%clk 0:03:00.3]} 6... c5 {[%clk
0:02:57.1]} 7. Nxd5 {[%clk 0:02:58.4]} 7... Qxd5 {[%clk 0:02:56.3]} 8. Rc1
{[%clk 0:02:58.6]} 8... Nd7 {[%clk 0:02:39.7]} 9. Qc2 {[%clk 0:02:50.9]} 9... b6
{[%clk 0:02:26.3]} 10. e4 {[%clk 0:02:49.9]} 10... Qb7 {[%clk 0:02:17.6]} 11.
Bc4 {[%clk 0:02:43.7]} 11... Nf6 {[%clk 0:02:06.5]} 12. e5 {[%clk 0:02:43.8]}
12... Ne4 {[%clk 0:02:03.5]} 13. Bb5+ {[%clk 0:02:34.9]} 13... Bd7 {[%clk
0:01:52.1]} 14. Bxd7+ {[%clk 0:02:33.9]} 14... Kxd7 {[%clk 0:01:52.4]} 15. O-O
{[%clk 0:02:22.3]} 15... Rhc8 {[%clk 0:01:43.2]} 16. d5 {[%clk 0:02:04.5]} 16...
Nxd2 {[%clk 0:01:37.2]} 17. Qxd2 {[%clk 0:02:05.4]} 17... Ke8 {[%clk 0:01:34.7]}
18. Rfe1 {[%clk 0:02:04.7]} 18... Rd8 {[%clk 0:01:33.7]} 19. Rcd1 {[%clk
0:02:05.1]} 19... Kf8 {[%clk 0:01:32.4]} 20. h4 {[%clk 0:02:05.1]} 20... h5
{[%clk 0:01:31.7]} 21. Ng5 {[%clk 0:01:58.6]} 21... e6 {[%clk 0:01:27]} 22. Qf4
{[%clk 0:01:50.9]} 22... Rxd5 {[%clk 0:01:17.3]} 23. Nxe6+ {[%clk 0:01:50.9]}
23... Kg8 {[%clk 0:01:16.9]} 24. Rxd5 {[%clk 0:01:48.9]} 24... Qxd5 {[%clk
0:01:15.8]} 25. Nc7 {[%clk 0:01:49]} 25... Qd8 {[%clk 0:00:54.8]} 26. Nxa8
{[%clk 0:01:48.2]} 26... Qxa8 {[%clk 0:00:54.9]} 27. e6 {[%clk 0:01:47.1]} 1-0

[Event "*** Titled Tuesday Blitz"]
[Site "Chess.com"]
[Date "2020.10.20"]
[Round "1"]
[White "harvsp123"]
[Black "SergeyKarjakin"]
[Result "0-1"]
[WhiteElo "2442"]
[BlackElo "2898"]
[TimeControl "180+1"]
[EndTime "10:04:32 PDT"]
[Termination "SergeyKarjakin won by resignation"]

1. d4 {[%clk 0:03:00.8]} 1... Nf6 {[%clk 0:02:59]} 2. c4 {[%clk 0:03:00.2]} 2...
e6 {[%clk 0:02:59.1]} 3. Nf3 {[%clk 0:02:59]} 3... d5 {[%clk 0:02:58.2]} 4. g3
{[%clk 0:02:56.8]} 4... Bb4+ {[%clk 0:02:52.6]} 5. Bd2 {[%clk 0:02:54.9]} 5...
Be7 {[%clk 0:02:53.1]} 6. Bg2 {[%clk 0:02:52.6]} 6... Nbd7 {[%clk 0:02:52.9]} 7.
Qc2 {[%clk 0:02:50.9]} 7... c6 {[%clk 0:02:51.7]} 8. O-O {[%clk 0:02:50.8]} 8...
b6 {[%clk 0:02:51.5]} 9. Bf4 {[%clk 0:02:47.8]} 9... Ba6 {[%clk 0:02:48.3]} 10.
cxd5 {[%clk 0:02:25]} 10... cxd5 {[%clk 0:02:49.2]} 11. Nc3 {[%clk 0:02:24.1]}
11... O-O {[%clk 0:02:46.9]} 12. Qa4 {[%clk 0:02:10]} 12... Qc8 {[%clk
0:02:28.8]} 13. Rac1 {[%clk 0:01:54.5]} 13... Qb7 {[%clk 0:02:28.6]} 14. Rfd1
{[%clk 0:01:34.5]} 14... Rfc8 {[%clk 0:02:26.7]} 15. Ne5 {[%clk 0:01:33]} 15...
b5 {[%clk 0:02:18.9]} 16. Qb3 {[%clk 0:01:30]} 16... b4 {[%clk 0:02:18.5]} 17.
Na4 {[%clk 0:01:04.7]} 17... Bxe2 {[%clk 0:02:17.5]} 18. Re1 {[%clk 0:01:03.6]}
18... Bb5 {[%clk 0:02:16.8]} 19. Bg5 {[%clk 0:00:50.4]} 19... Rxc1 {[%clk
0:01:55.3]} 20. Rxc1 {[%clk 0:00:49.3]} 20... Rc8 {[%clk 0:01:55.8]} 21. Rxc8+
{[%clk 0:00:46.3]} 21... Qxc8 {[%clk 0:01:56.7]} 22. Nxd7 {[%clk 0:00:38.2]}
22... Nxd7 {[%clk 0:01:54.6]} 23. Bxe7 {[%clk 0:00:37.3]} 23... Qc1+ {[%clk
0:01:54.1]} 0-1

[Event "*** Titled Tuesday Blitz"]
[Site "Chess.com"]
[Date "2020.10.20"]
[Round "1"]
[White "LikeWater"]
[Black "alexwinter25"]
[Result "0-1"]
[WhiteElo "2631"]
[BlackElo "2344"]
[TimeControl "180+1"]
[EndTime "10:04:32 PDT"]
[Termination "alexwinter25 won on time"]

1. e4 {[%clk 0:03:00.9]} 1... e5 {[%clk 0:02:59.9]} 2. Nf3 {[%clk 0:02:58.9]}
2... Nc6 {[%clk 0:02:59.8]} 3. d4 {[%clk 0:02:58.7]} 3... exd4 {[%clk
0:02:59.6]} 4. Bc4 {[%clk 0:02:59.4]} 4... Nf6 {[%clk 0:02:59.4]} 5. e5 {[%clk
0:02:58.2]} 5... d5 {[%clk 0:02:59.1]} 6. Bb5 {[%clk 0:02:58.4]} 6... Ne4 {[%clk
0:02:59.5]} 7. Nxd4 {[%clk 0:02:58.3]} 7... Bd7 {[%clk 0:02:58.4]} 8. Bxc6
{[%clk 0:02:57.8]} 8... bxc6 {[%clk 0:02:59.3]} 9. O-O {[%clk 0:02:57]} 9... Bc5
{[%clk 0:02:59]} 10. f3 {[%clk 0:02:57.6]} 10... Ng5 {[%clk 0:02:57.7]} 11. f4
{[%clk 0:02:58.1]} 11... Ne4 {[%clk 0:02:56.5]} 12. Be3 {[%clk 0:02:58.7]} 12...
Bb6 {[%clk 0:02:56.6]} 13. Nd2 {[%clk 0:02:58.4]} 13... c5 {[%clk 0:02:54]} 14.
N4f3 {[%clk 0:02:21.8]} 14... Nxd2 {[%clk 0:02:46.6]} 15. Qxd2 {[%clk
0:02:22.7]} 15... Bb5 {[%clk 0:02:38.8]} 16. f5 {[%clk 0:02:16.8]} 16... Bxf1
{[%clk 0:02:35.3]} 17. Rxf1 {[%clk 0:02:17.7]} 17... d4 {[%clk 0:02:35.5]} 18.
Bg5 {[%clk 0:02:14.4]} 18... Qd5 {[%clk 0:02:34.9]} 19. f6 {[%clk 0:01:54.5]}
19... gxf6 {[%clk 0:02:16.7]} 0-1

[Event "*** Titled Tuesday Blitz"]
[Site "Chess.com"]
[Date "2020.10.20"]
[Round "1"]
[White "bakki78"]
[Black "dpopadic"]
[Result "1-0"]
[WhiteElo "2734"]
[BlackElo "2368"]
[TimeControl "180+1"]
[EndTime "10:04:33 PDT"]
[Termination "bakki78 won by checkmate"]

1. e4 {[%clk 0:03:00.6]} 1... c5 {[%clk 0:02:59]} 2. c3 {[%clk 0:02:59.7]} 2...
d6 {[%clk 0:02:50.3]} 3. d4 {[%clk 0:02:58.9]} 3... Nc6 {[%clk 0:02:47.7]} 4. d5
{[%clk 0:02:56]} 4... Nb8 {[%clk 0:02:47]} 5. f4 {[%clk 0:02:52.9]} 5... e6
{[%clk 0:02:45.5]} 6. c4 {[%clk 0:02:50]} 6... exd5 {[%clk 0:02:45.4]} 7. cxd5
{[%clk 0:02:49.7]} 7... Nf6 {[%clk 0:02:45.5]} 8. Nc3 {[%clk 0:02:49.3]} 8...
Be7 {[%clk 0:02:45.3]} 9. Nf3 {[%clk 0:02:49.4]} 9... O-O {[%clk 0:02:43.2]} 10.
Bd3 {[%clk 0:02:49.3]} 10... a6 {[%clk 0:02:42.1]} 11. a4 {[%clk 0:02:48.7]}
11... Bg4 {[%clk 0:02:41.4]} 12. O-O {[%clk 0:02:47.4]} 12... Nbd7 {[%clk
0:02:41.2]} 13. Re1 {[%clk 0:02:35.5]} 13... Qc7 {[%clk 0:02:40.6]} 14. a5
{[%clk 0:02:26.8]} 14... c4 {[%clk 0:02:22.3]} 15. Bc2 {[%clk 0:02:26.9]} 15...
Nc5 {[%clk 0:02:21]} 16. h3 {[%clk 0:02:25.7]} 16... Bxf3 {[%clk 0:02:17.4]} 17.
Qxf3 {[%clk 0:02:25.7]} 17... Rae8 {[%clk 0:02:15]} 18. Be3 {[%clk 0:02:03.5]}
18... Bd8 {[%clk 0:02:13.8]} 19. Bd4 {[%clk 0:02:03.3]} 19... Nfd7 {[%clk
0:02:04.7]} 20. Rad1 {[%clk 0:01:56.2]} 20... Bf6 {[%clk 0:02:03.3]} 21. Bxf6
{[%clk 0:01:46.5]} 21... Nxf6 {[%clk 0:02:02.9]} 22. e5 {[%clk 0:01:46.9]} 22...
Nfd7 {[%clk 0:01:59.3]} 23. e6 {[%clk 0:01:43.6]} 23... Nf6 {[%clk 0:01:52.2]}
24. g4 {[%clk 0:01:42.5]} 24... fxe6 {[%clk 0:01:34.4]} 25. dxe6 {[%clk
0:01:42.1]} 25... Rxe6 {[%clk 0:01:33.5]} 26. g5 {[%clk 0:01:36.4]} 26... Rxe1+
{[%clk 0:01:32.5]} 27. Rxe1 {[%clk 0:01:35.9]} 27... Ne8 {[%clk 0:01:28.6]} 28.
Nd5 {[%clk 0:01:30.4]} 28... Qxa5 {[%clk 0:01:27.5]} 29. Bxh7+ {[%clk
0:01:24.3]} 29... Kxh7 {[%clk 0:01:23.2]} 30. Qh5+ {[%clk 0:01:23.6]} 30... Kg8
{[%clk 0:01:23.1]} 31. Ne7# {[%clk 0:01:24.2]} 1-0

[Event "*** Titled Tuesday Blitz"]
[Site "Chess.com"]
[Date "2020.10.20"]
[Round "1"]
[White "markberk"]
[Black "jlucasvf"]
[Result "0-1"]
[WhiteElo "2388"]
[BlackElo "2787"]
[TimeControl "180+1"]
[EndTime "10:04:34 PDT"]
[Termination "jlucasvf won by checkmate"]

1. Nf3 {[%clk 0:02:57.5]} 1... g5 {[%clk 0:03:00.9]} 2. Nxg5 {[%clk 0:02:50.6]}
2... e5 {[%clk 0:03:00.8]} 3. d4 {[%clk 0:02:44.3]} 3... Be7 {[%clk 0:02:59.9]}
4. Nf3 {[%clk 0:02:37.8]} 4... e4 {[%clk 0:02:59.9]} 5. Ne5 {[%clk 0:02:37]}
5... d6 {[%clk 0:02:54.2]} 6. Nc4 {[%clk 0:02:32.2]} 6... d5 {[%clk 0:02:43.9]}
7. Ne5 {[%clk 0:02:22.3]} 7... Nc6 {[%clk 0:02:44.2]} 8. Nxc6 {[%clk 0:02:18.2]}
8... bxc6 {[%clk 0:02:44.1]} 9. Bf4 {[%clk 0:02:17.2]} 9... Nf6 {[%clk
0:02:30.2]} 10. e3 {[%clk 0:02:11.4]} 10... Rg8 {[%clk 0:02:28.9]} 11. c4 {[%clk
0:02:07.8]} 11... Rb8 {[%clk 0:02:24.3]} 12. Qc2 {[%clk 0:02:01.7]} 12... Nh5
{[%clk 0:02:09.6]} 13. Bg3 {[%clk 0:01:55.8]} 13... c5 {[%clk 0:01:54.1]} 14.
cxd5 {[%clk 0:01:47.9]} 14... Nxg3 {[%clk 0:01:53.6]} 15. hxg3 {[%clk
0:01:46.6]} 15... cxd4 {[%clk 0:01:54.3]} 16. Qa4+ {[%clk 0:01:38.3]} 16... Kf8
{[%clk 0:01:35.4]} 17. Qxd4 {[%clk 0:01:28.2]} 17... Bf6 {[%clk 0:01:35.6]} 18.
Qc5+ {[%clk 0:01:27.8]} 18... Kg7 {[%clk 0:01:28.5]} 19. Nc3 {[%clk 0:01:21.2]}
19... Rxb2 {[%clk 0:01:25.3]} 20. Rc1 {[%clk 0:01:18.4]} 20... Bf5 {[%clk
0:01:15]} 21. d6 {[%clk 0:01:16]} 21... Bg6 {[%clk 0:01:12.4]} 22. dxc7 {[%clk
0:01:13.6]} 22... Qd2# {[%clk 0:01:11.8]} 0-1

[Event "*** Titled Tuesday Blitz"]
[Site "Chess.com"]
[Date "2020.10.20"]
[Round "1"]
[White "szachuspl"]
[Black "northridgehawk"]
[Result "1-0"]
[WhiteElo "2533"]
[BlackElo "2204"]
[TimeControl "180+1"]
[EndTime "10:04:35 PDT"]
[Termination "szachuspl won by resignation"]

1. d4 {[%clk 0:03:00.3]} 1... f6 {[%clk 0:02:56.1]} 2. e4 {[%clk 0:02:54.1]}
2... e6 {[%clk 0:02:52.5]} 3. Nc3 {[%clk 0:02:50.8]} 3... Bb4 {[%clk 0:02:50.4]}
4. Nf3 {[%clk 0:02:48.9]} 4... Ne7 {[%clk 0:02:50]} 5. Bd3 {[%clk 0:02:47.7]}
5... d5 {[%clk 0:02:45.7]} 6. Bd2 {[%clk 0:02:45.2]} 6... Nbc6 {[%clk
0:02:43.9]} 7. a3 {[%clk 0:02:41.7]} 7... Bd6 {[%clk 0:02:41.9]} 8. O-O {[%clk
0:02:38.9]} 8... a6 {[%clk 0:02:41.4]} 9. Re1 {[%clk 0:02:35.5]} 9... O-O {[%clk
0:02:40.8]} 10. b4 {[%clk 0:02:33.6]} 10... Ng6 {[%clk 0:02:39.4]} 11. g3 {[%clk
0:02:31.6]} 11... Nce7 {[%clk 0:02:19.6]} 12. e5 {[%clk 0:02:25.3]} 12... fxe5
{[%clk 0:02:16.6]} 13. dxe5 {[%clk 0:02:25.5]} 13... Rxf3 {[%clk 0:02:15.9]} 14.
exd6 {[%clk 0:02:19.4]} 14... Rf7 {[%clk 0:02:08.1]} 15. dxe7 {[%clk 0:02:19.4]}
15... Qxe7 {[%clk 0:02:05.3]} 16. Bxg6 {[%clk 0:02:17.5]} 16... hxg6 {[%clk
0:02:04.5]} 17. h4 {[%clk 0:02:16.9]} 17... c6 {[%clk 0:02:03.8]} 18. Bg5 {[%clk
0:02:16.5]} 18... Qf8 {[%clk 0:02:03.8]} 19. Qd4 {[%clk 0:02:15.8]} 19... Rf5
{[%clk 0:02:02.4]} 20. f4 {[%clk 0:02:15.8]} 20... Bd7 {[%clk 0:01:54.8]} 21.
Na4 {[%clk 0:02:15]} 21... Re8 {[%clk 0:01:54.3]} 22. Re5 {[%clk 0:02:10.7]}
22... Bc8 {[%clk 0:01:51.2]} 23. Rae1 {[%clk 0:02:09.7]} 23... Qd6 {[%clk
0:01:46.7]} 24. Rxf5 {[%clk 0:02:04.8]} 24... gxf5 {[%clk 0:01:45.1]} 25. h5
{[%clk 0:02:05.2]} 25... Kf7 {[%clk 0:01:28.8]} 26. Nb6 {[%clk 0:02:02.6]} 26...
Rh8 {[%clk 0:01:24]} 27. h6 {[%clk 0:02:00.8]} 27... Rh7 {[%clk 0:01:21.9]} 28.
Nxc8 {[%clk 0:01:59.9]} 28... Qc7 {[%clk 0:01:21.1]} 29. hxg7 {[%clk 0:01:50.5]}
29... Qxc8 {[%clk 0:01:09]} 30. Qf6+ {[%clk 0:01:49.9]} 30... Kg8 {[%clk
0:01:09.1]} 31. Bh6 {[%clk 0:01:46.5]} 31... Rxh6 {[%clk 0:01:00.4]} 32. Qxh6
{[%clk 0:01:45.8]} 32... Qd8 {[%clk 0:01:00.3]} 33. Qh8+ {[%clk 0:01:45.8]} 1-0

[Event "*** Titled Tuesday Blitz"]
[Site "Chess.com"]
[Date "2020.10.20"]
[Round "1"]
[White "TrenerChos"]
[Black "Anna_ChessMate"]
[Result "0-1"]
[WhiteElo "2199"]
[BlackElo "2531"]
[TimeControl "180+1"]
[EndTime "10:04:41 PDT"]
[Termination "Anna_ChessMate won by resignation"]

1. d4 {[%clk 0:02:58.7]} 1... d5 {[%clk 0:02:59.5]} 2. c4 {[%clk 0:02:56.7]}
2... c6 {[%clk 0:02:59.2]} 3. Nf3 {[%clk 0:02:55.1]} 3... Nf6 {[%clk 0:02:59.7]}
4. g3 {[%clk 0:02:54.5]} 4... Bf5 {[%clk 0:02:58.6]} 5. Bg2 {[%clk 0:02:54.7]}
5... e6 {[%clk 0:02:59.3]} 6. O-O {[%clk 0:02:54.1]} 6... Nbd7 {[%clk
0:02:59.6]} 7. Nc3 {[%clk 0:02:54.8]} 7... Be7 {[%clk 0:02:59.9]} 8. e3 {[%clk
0:02:55.7]} 8... O-O {[%clk 0:03:00.1]} 9. Re1 {[%clk 0:02:56.5]} 9... dxc4
{[%clk 0:02:59]} 10. h3 {[%clk 0:02:56.3]} 10... b5 {[%clk 0:02:57.9]} 11. Nh4
{[%clk 0:02:54.8]} 11... Rc8 {[%clk 0:02:55.7]} 12. Nxf5 {[%clk 0:02:52.5]}
12... exf5 {[%clk 0:02:56.6]} 13. d5 {[%clk 0:02:52.3]} 13... Ne5 {[%clk
0:02:43.3]} 14. dxc6 {[%clk 0:02:45.8]} 14... Nd3 {[%clk 0:02:43.7]} 15. Rf1
{[%clk 0:02:44.6]} 15... b4 {[%clk 0:02:43.9]} 16. Ne2 {[%clk 0:02:41.1]} 16...
Ne4 {[%clk 0:02:42.3]} 17. f3 {[%clk 0:02:38.3]} 17... Nf6 {[%clk 0:02:19.7]}
18. Nd4 {[%clk 0:02:35.2]} 18... Bc5 {[%clk 0:02:01.4]} 19. Nxf5 {[%clk
0:02:22.1]} 19... Rxc6 {[%clk 0:02:01.8]} 20. g4 {[%clk 0:01:56.9]} 20... g6
{[%clk 0:02:01.2]} 21. Ng3 {[%clk 0:01:54.4]} 21... Nxc1 {[%clk 0:01:57.6]} 22.
Qxc1 {[%clk 0:01:55.2]} 22... Qd3 {[%clk 0:01:57.6]} 23. Re1 {[%clk 0:01:53.7]}
23... Re8 {[%clk 0:01:57.7]} 24. Nf1 {[%clk 0:01:43.8]} 24... Nd5 {[%clk
0:01:49]} 25. f4 {[%clk 0:01:31.8]} 25... Nxe3 {[%clk 0:01:47.4]} 26. Bxc6
{[%clk 0:01:16]} 26... Nxf1+ {[%clk 0:01:46.2]} 27. Kg2 {[%clk 0:01:03]} 27...
Qg3+ {[%clk 0:01:45.4]} 0-1

[Event "*** Titled Tuesday Blitz"]
[Site "Chess.com"]
[Date "2020.10.20"]
[Round "1"]
[White "Kira170"]
[Black "ajdemipopushi"]
[Result "1-0"]
[WhiteElo "2702"]
[BlackElo "2345"]
[TimeControl "180+1"]
[EndTime "10:04:42 PDT"]
[Termination "Kira170 won by resignation"]

1. d4 {[%clk 0:03:00.7]} 1... Nf6 {[%clk 0:02:59.6]} 2. Nc3 {[%clk 0:02:59.9]}
2... d5 {[%clk 0:02:58]} 3. Bf4 {[%clk 0:02:59.9]} 3... a6 {[%clk 0:02:56.4]} 4.
e3 {[%clk 0:02:58.6]} 4... c5 {[%clk 0:02:52.3]} 5. Nf3 {[%clk 0:02:57.7]} 5...
Nc6 {[%clk 0:02:51.9]} 6. Ne5 {[%clk 0:02:57.3]} 6... e6 {[%clk 0:02:47.9]} 7.
g4 {[%clk 0:02:56.7]} 7... Nd7 {[%clk 0:02:33.6]} 8. Bg2 {[%clk 0:02:52]} 8...
h5 {[%clk 0:02:13.3]} 9. gxh5 {[%clk 0:02:49.7]} 9... Ndxe5 {[%clk 0:02:11.5]}
10. dxe5 {[%clk 0:02:48.4]} 10... Qh4 {[%clk 0:01:56.3]} 11. Bf3 {[%clk
0:02:41.4]} 11... d4 {[%clk 0:00:58.7]} 12. Ne4 {[%clk 0:02:34.5]} 12... dxe3
{[%clk 0:00:49.6]} 13. Bg3 {[%clk 0:02:34.5]} 13... exf2+ {[%clk 0:00:48]} 14.
Kxf2 {[%clk 0:02:35.2]} 14... Qd8 {[%clk 0:00:35.1]} 15. Qxd8+ {[%clk
0:02:31.9]} 15... Nxd8 {[%clk 0:00:33.1]} 16. Rad1 {[%clk 0:02:27.5]} 16... Nc6
{[%clk 0:00:31.4]} 17. Nd6+ {[%clk 0:02:17.9]} 17... Bxd6 {[%clk 0:00:30.6]} 18.
Rxd6 {[%clk 0:02:18.8]} 18... Bd7 {[%clk 0:00:25.4]} 19. Rhd1 {[%clk 0:02:13.4]}
19... Bc8 {[%clk 0:00:12.9]} 20. Bxc6+ {[%clk 0:02:11.8]} 20... bxc6 {[%clk
0:00:12.4]} 21. Rd8+ {[%clk 0:02:11.5]} 1-0

[Event "*** Titled Tuesday Blitz"]
[Site "Chess.com"]
[Date "2020.10.20"]
[Round "1"]
[White "KaterinaMiroshnik"]
[Black "ChessWarrior7197"]
[Result "0-1"]
[WhiteElo "2451"]
[BlackElo "3010"]
[TimeControl "180+1"]
[EndTime "10:04:46 PDT"]
[Termination "ChessWarrior7197 won by resignation"]

1. d3 {[%clk 0:03:00.9]} 1... d5 {[%clk 0:02:59.4]} 2. Nd2 {[%clk 0:03:01.8]}
2... e5 {[%clk 0:02:55.4]} 3. Ngf3 {[%clk 0:03:02.7]} 3... Nc6 {[%clk
0:02:55.1]} 4. e4 {[%clk 0:03:02.1]} 4... Nge7 {[%clk 0:02:53.8]} 5. Be2 {[%clk
0:03:02]} 5... g6 {[%clk 0:02:54]} 6. O-O {[%clk 0:03:01.3]} 6... Bg7 {[%clk
0:02:51.3]} 7. c3 {[%clk 0:03:01]} 7... O-O {[%clk 0:02:48.3]} 8. Qc2 {[%clk
0:03:00]} 8... h6 {[%clk 0:02:48.1]} 9. Re1 {[%clk 0:02:59.6]} 9... Be6 {[%clk
0:02:47.2]} 10. a3 {[%clk 0:02:59.5]} 10... a5 {[%clk 0:02:46.3]} 11. b3 {[%clk
0:02:57.5]} 11... f5 {[%clk 0:02:45.3]} 12. Bb2 {[%clk 0:02:48]} 12... g5 {[%clk
0:02:45.1]} 13. exf5 {[%clk 0:02:46.3]} 13... Nxf5 {[%clk 0:02:43.8]} 14. h3
{[%clk 0:02:41.7]} 14... h5 {[%clk 0:02:40.8]} 15. Nh2 {[%clk 0:02:39.8]} 15...
Qe8 {[%clk 0:02:36.9]} 16. Qd1 {[%clk 0:02:37.4]} 16... Bf7 {[%clk 0:02:34.1]}
17. c4 {[%clk 0:02:25.5]} 17... dxc4 {[%clk 0:02:25.9]} 18. Nxc4 {[%clk
0:02:21.1]} 18... Ncd4 {[%clk 0:02:25.7]} 19. Bf1 {[%clk 0:02:15.4]} 19... b5
{[%clk 0:02:19.3]} 20. Nd2 {[%clk 0:02:02]} 20... Bd5 {[%clk 0:02:16.7]} 21.
Nhf3 {[%clk 0:01:58.2]} 21... c5 {[%clk 0:02:07.8]} 22. Nxg5 {[%clk 0:01:49.2]}
22... Qg6 {[%clk 0:02:04.8]} 23. Nge4 {[%clk 0:01:45.8]} 23... Nh4 {[%clk
0:02:01.2]} 24. Bxd4 {[%clk 0:01:38.4]} 24... exd4 {[%clk 0:02:01.1]} 25. Qe2
{[%clk 0:01:25.4]} 25... Rae8 {[%clk 0:01:59.1]} 26. Kh1 {[%clk 0:01:18.7]}
26... Bh6 {[%clk 0:01:58]} 27. Nf3 {[%clk 0:01:10]} 27... Rxf3 {[%clk 0:01:53]}
28. gxf3 {[%clk 0:01:10.9]} 28... Kh8 {[%clk 0:01:49.8]} 29. b4 {[%clk
0:00:58.4]} 29... Rg8 {[%clk 0:01:47.4]} 0-1

[Event "*** Titled Tuesday Blitz"]
[Site "Chess.com"]
[Date "2020.10.20"]
[Round "1"]
[White "Gerodot71"]
[Black "denispopov"]
[Result "1-0"]
[WhiteElo "2464"]
[BlackElo "1959"]
[TimeControl "180+1"]
[EndTime "10:05:02 PDT"]
[Termination "Gerodot71 won on time"]

1. d4 {[%clk 0:03:00.9]} 1... Nf6 {[%clk 0:02:54.4]} 2. c4 {[%clk 0:03:01.3]}
2... g6 {[%clk 0:02:54.4]} 3. Nc3 {[%clk 0:03:01.3]} 3... d5 {[%clk 0:02:53.9]}
4. cxd5 {[%clk 0:03:02.2]} 4... Nxd5 {[%clk 0:02:54.5]} 5. e4 {[%clk 0:03:02.8]}
5... Nxc3 {[%clk 0:02:55]} 6. bxc3 {[%clk 0:03:03.7]} 6... Bg7 {[%clk
0:02:55.6]} 7. Nf3 {[%clk 0:03:04.3]} 7... O-O {[%clk 0:02:56.5]} 8. Be2 {[%clk
0:03:04.3]} 8... c5 {[%clk 0:02:57.2]} 9. O-O {[%clk 0:03:04.6]} 9... Nc6 {[%clk
0:02:57.4]} 10. Be3 {[%clk 0:03:04.5]} 10... b6 {[%clk 0:02:56.3]} 11. d5 {[%clk
0:02:59.1]} 11... Ne5 {[%clk 0:02:55.7]} 12. Nxe5 {[%clk 0:02:52.7]} 12... Bxe5
{[%clk 0:02:56.6]} 13. Qd2 {[%clk 0:02:53.3]} 13... Bb7 {[%clk 0:02:25.9]} 14.
f4 {[%clk 0:02:49.7]} 14... Bg7 {[%clk 0:02:22.4]} 15. Rad1 {[%clk 0:02:49.7]}
15... Re8 {[%clk 0:01:52.4]} 16. c4 {[%clk 0:02:36.8]} 16... Rc8 {[%clk
0:01:12]} 17. Bf3 {[%clk 0:02:31.1]} 17... Rc7 {[%clk 0:00:55.1]} 18. e5 {[%clk
0:02:24]} 18... e6 {[%clk 0:00:47.9]} 19. d6 {[%clk 0:02:11.3]} 19... Rd7 {[%clk
0:00:47.7]} 20. Qe2 {[%clk 0:01:59.6]} 20... f6 {[%clk 0:00:34.7]} 21. Bc1
{[%clk 0:01:54.7]} 1-0